[Event "*** Titled Tuesday Blitz"]
[Site "Chess.com"]
[Date "2020.11.24"]
[Round "9"]
[White "Zhigalko_Sergei"]
[Black "FontVella8"]
[Result "1-0"]
[WhiteElo "2880"]
[BlackElo "2548"]
[TimeControl "180+1"]
[EndTime "12:02:44 PST"]
[Termination "Zhigalko_Sergei won by resignation"]

1. e4 {[%clk 0:03:00.9]} 1... e5 {[%clk 0:02:59.3]} 2. Nf3 {[%clk 0:03:00.9]}
2... Nc6 {[%clk 0:02:59.7]} 3. Bc4 {[%clk 0:03:00.4]} 3... Bc5 {[%clk
0:02:59.5]} 4. b4 {[%clk 0:03:00.5]} 4... Bxb4 {[%clk 0:02:59.3]} 5. c3 {[%clk
0:03:00.8]} 5... Ba5 {[%clk 0:02:59.6]} 6. d4 {[%clk 0:03:00.7]} 6... exd4
{[%clk 0:02:59.8]} 7. O-O {[%clk 0:03:00.4]} 7... Nf6 {[%clk 0:02:56.2]} 8. Ba3
{[%clk 0:02:50.3]} 8... d6 {[%clk 0:02:41]} 9. e5 {[%clk 0:02:46.9]} 9... dxe5
{[%clk 0:02:11.4]} 10. Qb3 {[%clk 0:02:34.1]} 10... Qd7 {[%clk 0:02:00.4]} 11.
Re1 {[%clk 0:02:17.1]} 11... e4 {[%clk 0:01:48.8]} 12. Ng5 {[%clk 0:02:13.5]}
12... Ne5 {[%clk 0:01:28]} 13. Nxe4 {[%clk 0:02:09.4]} 13... Nxe4 {[%clk
0:01:24]} 14. Rxe4 {[%clk 0:02:09.2]} 14... f6 {[%clk 0:01:10.7]} 15. cxd4
{[%clk 0:01:23.8]} 15... Qf5 {[%clk 0:01:02.6]} 16. Bf7+ {[%clk 0:00:44.3]}
16... Kd8 {[%clk 0:00:58]} 17. Qd5+ {[%clk 0:00:44]} 17... Bd7 {[%clk
0:00:57.4]} 18. dxe5 {[%clk 0:00:41]} 18... Bb6 {[%clk 0:00:55.8]} 19. Nc3
{[%clk 0:00:31.8]} 19... Kc8 {[%clk 0:00:52]} 20. Rd1 {[%clk 0:00:27]} 20...
Qxf2+ {[%clk 0:00:43.5]} 21. Kh1 {[%clk 0:00:26.8]} 21... Bh3 {[%clk 0:00:12.2]}
22. Be6+ {[%clk 0:00:16.3]} 22... Bxe6 {[%clk 0:00:11.8]} 23. Qxe6+ {[%clk
0:00:16.9]} 23... Kb8 {[%clk 0:00:12.5]} 24. exf6 {[%clk 0:00:12.9]} 24... a6
{[%clk 0:00:09.6]} 25. fxg7 {[%clk 0:00:11.3]} 25... Rg8 {[%clk 0:00:09.9]} 26.
Qxg8+ {[%clk 0:00:10.2]} 26... Ka7 {[%clk 0:00:10.4]} 27. Qxa8+ {[%clk
0:00:10.3]} 27... Kxa8 {[%clk 0:00:10.8]} 28. g8=Q+ {[%clk 0:00:11.1]} 28... Ka7
{[%clk 0:00:11.7]} 29. h3 {[%clk 0:00:09.3]} 1-0

[Event "*** Titled Tuesday Blitz"]
[Site "Chess.com"]
[Date "2020.11.24"]
[Round "9"]
[White "EdmundPlayer"]
[Black "Morshynska"]
[Result "1-0"]
[WhiteElo "2175"]
[BlackElo "2250"]
[TimeControl "180+1"]
[EndTime "12:02:45 PST"]
[Termination "EdmundPlayer won on time"]

1. e4 {[%clk 0:03:00.9]} 1... e5 {[%clk 0:02:59.6]} 2. Nf3 {[%clk 0:03:00.8]}
2... Nc6 {[%clk 0:03:00.1]} 3. Bb5 {[%clk 0:03:00.8]} 3... a6 {[%clk 0:03:00.5]}
4. Ba4 {[%clk 0:03:00.5]} 4... Nf6 {[%clk 0:03:01]} 5. O-O {[%clk 0:03:00.5]}
5... b5 {[%clk 0:03:01.6]} 6. Bb3 {[%clk 0:03:00.2]} 6... Bb7 {[%clk 0:03:02.1]}
7. Re1 {[%clk 0:02:55.9]} 7... Bc5 {[%clk 0:03:02.4]} 8. c3 {[%clk 0:02:56]}
8... d6 {[%clk 0:03:02.8]} 9. d4 {[%clk 0:02:55.9]} 9... Bb6 {[%clk 0:03:03.3]}
10. Bg5 {[%clk 0:02:40.9]} 10... h6 {[%clk 0:03:03.6]} 11. Bxf6 {[%clk
0:02:09.9]} 11... Qxf6 {[%clk 0:03:04.5]} 12. Bd5 {[%clk 0:01:54.4]} 12... O-O
{[%clk 0:03:00]} 13. Nbd2 {[%clk 0:01:40]} 13... exd4 {[%clk 0:02:55.3]} 14.
cxd4 {[%clk 0:01:35.4]} 14... Rab8 {[%clk 0:02:06.9]} 15. Nb3 {[%clk 0:01:17.8]}
15... Ne7 {[%clk 0:01:54.7]} 16. Bxb7 {[%clk 0:01:15.6]} 16... Rxb7 {[%clk
0:01:55.6]} 17. e5 {[%clk 0:01:09.5]} 17... dxe5 {[%clk 0:01:54.8]} 18. Nxe5
{[%clk 0:01:10.4]} 18... Rd8 {[%clk 0:01:50.9]} 19. Qd3 {[%clk 0:00:59]} 19...
Nd5 {[%clk 0:01:42.2]} 20. Rac1 {[%clk 0:00:47.5]} 20... Qg5 {[%clk 0:01:08.9]}
21. Qe4 {[%clk 0:00:41.5]} 21... a5 {[%clk 0:01:00.3]} 22. h4 {[%clk 0:00:32.8]}
22... Qf6 {[%clk 0:00:55.4]} 23. Nc5 {[%clk 0:00:29.1]} 23... Bxc5 {[%clk
0:00:48.2]} 24. Rxc5 {[%clk 0:00:30]} 24... Nf4 {[%clk 0:00:42.1]} 25. Qxb7
{[%clk 0:00:27.7]} 25... Rxd4 {[%clk 0:00:30.3]} 26. Rxc7 {[%clk 0:00:21.3]}
26... Rd2 {[%clk 0:00:26.3]} 27. Rxf7 {[%clk 0:00:19.4]} 27... Nh3+ {[%clk
0:00:07.3]} 28. gxh3 {[%clk 0:00:16.8]} 28... Qxf2+ {[%clk 0:00:04.4]} 29. Rxf2
{[%clk 0:00:16.5]} 1-0

[Event "*** Titled Tuesday Blitz"]
[Site "Chess.com"]
[Date "2020.11.24"]
[Round "9"]
[White "yourstrulyme"]
[Black "Tenamu"]
[Result "1-0"]
[WhiteElo "2482"]
[BlackElo "2320"]
[TimeControl "180+1"]
[EndTime "12:02:56 PST"]
[Termination "yourstrulyme won by resignation"]

1. d4 {[%clk 0:03:00.2]} 1... e6 {[%clk 0:03:00.6]} 2. Bf4 {[%clk 0:02:59.7]}
2... Nf6 {[%clk 0:03:00.9]} 3. e3 {[%clk 0:02:59.7]} 3... d5 {[%clk 0:03:00.6]}
4. Nd2 {[%clk 0:02:58.8]} 4... c5 {[%clk 0:03:00.7]} 5. Ngf3 {[%clk 0:02:57.8]}
5... Nc6 {[%clk 0:03:00]} 6. c3 {[%clk 0:02:57.8]} 6... Bd6 {[%clk 0:02:57.9]}
7. Bg3 {[%clk 0:02:58.3]} 7... O-O {[%clk 0:02:57.3]} 8. Bb5 {[%clk 0:02:58.9]}
8... a6 {[%clk 0:02:56.7]} 9. Bxc6 {[%clk 0:02:58.8]} 9... bxc6 {[%clk
0:02:57.6]} 10. Qa4 {[%clk 0:02:59.4]} 10... cxd4 {[%clk 0:02:56.5]} 11. cxd4
{[%clk 0:02:58.5]} 11... c5 {[%clk 0:02:54.4]} 12. Bxd6 {[%clk 0:02:53.9]} 12...
Qxd6 {[%clk 0:02:55.3]} 13. Qa3 {[%clk 0:02:54.3]} 13... Qb6 {[%clk 0:02:37.8]}
14. dxc5 {[%clk 0:02:52.2]} 14... Qb5 {[%clk 0:02:38.1]} 15. Nd4 {[%clk
0:02:48.9]} 15... Qb8 {[%clk 0:02:33.7]} 16. O-O {[%clk 0:02:35.5]} 16... e5
{[%clk 0:02:32.8]} 17. Nc6 {[%clk 0:02:34.9]} 17... Qc7 {[%clk 0:02:32.2]} 18.
Na5 {[%clk 0:02:34.5]} 18... Be6 {[%clk 0:02:27.3]} 19. Rac1 {[%clk 0:02:29.6]}
19... Rab8 {[%clk 0:02:25.7]} 20. b4 {[%clk 0:02:16.1]} 20... Rfd8 {[%clk
0:02:15.5]} 21. Qc3 {[%clk 0:02:06.2]} 21... d4 {[%clk 0:02:05.3]} 22. exd4
{[%clk 0:02:05.8]} 22... exd4 {[%clk 0:02:05.6]} 23. Qg3 {[%clk 0:02:05.7]}
23... Qc8 {[%clk 0:02:00.3]} 24. a3 {[%clk 0:02:03.8]} 24... Nh5 {[%clk
0:01:56.4]} 25. Qh4 {[%clk 0:01:59.3]} 25... g6 {[%clk 0:01:52.7]} 26. Ne4
{[%clk 0:01:56.9]} 26... Bd5 {[%clk 0:01:35.6]} 27. Nd6 {[%clk 0:01:54.4]} 27...
Qe6 {[%clk 0:01:32.6]} 28. Qxd4 {[%clk 0:01:50.1]} 28... Ba8 {[%clk 0:01:29.5]}
29. Rfe1 {[%clk 0:01:50.1]} 29... Qa2 {[%clk 0:01:22.5]} 30. Rc3 {[%clk
0:01:41.6]} 30... Ng7 {[%clk 0:00:53]} 31. Qf6 {[%clk 0:01:30.6]} 31... Ne8
{[%clk 0:00:42.8]} 32. Qe5 {[%clk 0:00:56.4]} 32... Nxd6 {[%clk 0:00:39.8]} 33.
cxd6 {[%clk 0:00:57.1]} 33... Re8 {[%clk 0:00:33]} 34. Qxe8+ {[%clk 0:00:55.2]}
34... Rxe8 {[%clk 0:00:33.9]} 35. Rxe8+ {[%clk 0:00:55.2]} 35... Kg7 {[%clk
0:00:34.4]} 36. Rc1 {[%clk 0:00:37.6]} 36... Qd5 {[%clk 0:00:18.4]} 37. Rxa8
{[%clk 0:00:36.9]} 37... Qxa8 {[%clk 0:00:17.8]} 38. Rd1 {[%clk 0:00:37.3]}
38... Qe8 {[%clk 0:00:11.7]} 39. d7 {[%clk 0:00:37]} 39... Qd8 {[%clk
0:00:11.5]} 40. Nc6 {[%clk 0:00:36.8]} 1-0

[Event "*** Titled Tuesday Blitz"]
[Site "Chess.com"]
[Date "2020.11.24"]
[Round "9"]
[White "AlexSuv"]
[Black "chessdjw"]
[Result "0-1"]
[WhiteElo "2521"]
[BlackElo "2661"]
[TimeControl "180+1"]
[EndTime "12:02:59 PST"]
[Termination "chessdjw won by checkmate"]

1. d4 {[%clk 0:03:00.2]} 1... Nf6 {[%clk 0:02:58.7]} 2. c4 {[%clk 0:02:59.5]}
2... g6 {[%clk 0:02:57.9]} 3. Nc3 {[%clk 0:03:00.2]} 3... d5 {[%clk 0:02:57]} 4.
Nf3 {[%clk 0:03:00.5]} 4... Bg7 {[%clk 0:02:56.5]} 5. Bg5 {[%clk 0:03:00.5]}
5... Ne4 {[%clk 0:02:55.8]} 6. cxd5 {[%clk 0:02:56.6]} 6... Nxg5 {[%clk
0:02:50.5]} 7. Nxg5 {[%clk 0:02:55.1]} 7... e6 {[%clk 0:02:50.2]} 8. Qd2 {[%clk
0:02:55.6]} 8... h6 {[%clk 0:02:44.5]} 9. Nh3 {[%clk 0:02:55.5]} 9... exd5
{[%clk 0:02:43.6]} 10. Nf4 {[%clk 0:02:55.2]} 10... c6 {[%clk 0:02:34.3]} 11. e3
{[%clk 0:02:52.7]} 11... Nd7 {[%clk 0:02:31.2]} 12. Be2 {[%clk 0:02:52.6]} 12...
Nf6 {[%clk 0:02:30]} 13. O-O {[%clk 0:02:52.9]} 13... O-O {[%clk 0:02:28]} 14.
b4 {[%clk 0:02:53.3]} 14... a6 {[%clk 0:02:21]} 15. a4 {[%clk 0:02:51.2]} 15...
Bd7 {[%clk 0:02:06.3]} 16. b5 {[%clk 0:02:46]} 16... a5 {[%clk 0:01:36.3]} 17.
bxc6 {[%clk 0:02:42]} 17... bxc6 {[%clk 0:01:37.2]} 18. Nd3 {[%clk 0:02:41.5]}
18... Bf5 {[%clk 0:01:27.8]} 19. Nc5 {[%clk 0:02:33.7]} 19... Nd7 {[%clk
0:01:26]} 20. Nxd7 {[%clk 0:02:29.7]} 20... Qxd7 {[%clk 0:01:23.2]} 21. Bd3
{[%clk 0:02:29]} 21... Rfb8 {[%clk 0:01:19]} 22. Rfb1 {[%clk 0:02:28.4]} 22...
Rb4 {[%clk 0:01:17.6]} 23. Bxf5 {[%clk 0:02:15.7]} 23... Qxf5 {[%clk 0:01:14.2]}
24. Rxb4 {[%clk 0:02:10]} 24... axb4 {[%clk 0:01:13.4]} 25. Ne2 {[%clk
0:02:10.6]} 25... b3 {[%clk 0:00:59.8]} 26. Qc3 {[%clk 0:02:02.5]} 26... Rb8
{[%clk 0:00:52.5]} 27. Qb2 {[%clk 0:01:57.7]} 27... c5 {[%clk 0:00:46.8]} 28. a5
{[%clk 0:01:51]} 28... c4 {[%clk 0:00:44.2]} 29. a6 {[%clk 0:01:49.7]} 29... Ra8
{[%clk 0:00:41.1]} 30. Nc3 {[%clk 0:01:47.4]} 30... Bf8 {[%clk 0:00:37.1]} 31.
a7 {[%clk 0:01:34.4]} 31... Bb4 {[%clk 0:00:35]} 32. Nb5 {[%clk 0:01:32.6]}
32... Qd7 {[%clk 0:00:30]} 33. Nc3 {[%clk 0:01:23.3]} 33... Bxc3 {[%clk
0:00:28.5]} 34. Qxc3 {[%clk 0:01:21.2]} 34... Rxa7 {[%clk 0:00:28]} 35. Rd1
{[%clk 0:01:20.6]} 35... Ra2 {[%clk 0:00:26.1]} 36. e4 {[%clk 0:01:20]} 36...
Rc2 {[%clk 0:00:23]} 37. Qg3 {[%clk 0:01:14.7]} 37... dxe4 {[%clk 0:00:21.7]}
38. d5 {[%clk 0:01:14.3]} 38... b2 {[%clk 0:00:21.1]} 39. Qb8+ {[%clk
0:01:11.3]} 39... Kh7 {[%clk 0:00:20]} 40. Qf4 {[%clk 0:01:10.7]} 40... Qxd5
{[%clk 0:00:11.3]} 41. Rf1 {[%clk 0:01:03.2]} 41... c3 {[%clk 0:00:10.7]} 42. h4
{[%clk 0:01:01.8]} 42... Rd2 {[%clk 0:00:10.7]} 43. h5 {[%clk 0:01:01.5]} 43...
g5 {[%clk 0:00:10.7]} 44. Qg4 {[%clk 0:00:58]} 44... c2 {[%clk 0:00:10]} 45. f4
{[%clk 0:00:58.2]} 45... c1=Q {[%clk 0:00:09.8]} 46. fxg5 {[%clk 0:00:58]} 46...
Qdc5+ {[%clk 0:00:09.2]} 47. Kh2 {[%clk 0:00:57.9]} 47... Qxf1 {[%clk
0:00:09.5]} 48. g6+ {[%clk 0:00:58.1]} 48... Kh8 {[%clk 0:00:09]} 49. g7+ {[%clk
0:00:57.7]} 49... Kg8 {[%clk 0:00:08.8]} 50. Qxe4 {[%clk 0:00:54.2]} 50... Qxh5+
{[%clk 0:00:08.4]} 51. Kg3 {[%clk 0:00:54.5]} 51... Qf2# {[%clk 0:00:08.3]} 0-1

[Event "*** Titled Tuesday Blitz"]
[Site "Chess.com"]
[Date "2020.11.24"]
[Round "9"]
[White "elcandado"]
[Black "bratkoo"]
[Result "0-1"]
[WhiteElo "2650"]
[BlackElo "2539"]
[TimeControl "180+1"]
[EndTime "12:03:02 PST"]
[Termination "bratkoo won on time"]

1. d4 {[%clk 0:03:00.9]} 1... e6 {[%clk 0:02:58.5]} 2. Bf4 {[%clk 0:03:00.9]}
2... d5 {[%clk 0:02:58.8]} 3. e3 {[%clk 0:03:01.2]} 3... Bd6 {[%clk 0:02:59]} 4.
Bg3 {[%clk 0:03:00.4]} 4... Ne7 {[%clk 0:02:59.2]} 5. Bd3 {[%clk 0:02:59]} 5...
Nf5 {[%clk 0:02:59.6]} 6. Bxf5 {[%clk 0:02:58.5]} 6... exf5 {[%clk 0:03:00.5]}
7. Ne2 {[%clk 0:02:53.8]} 7... O-O {[%clk 0:02:59.6]} 8. O-O {[%clk 0:02:52.4]}
8... h6 {[%clk 0:02:52.1]} 9. Nd2 {[%clk 0:02:52.6]} 9... Be6 {[%clk 0:02:49.7]}
10. Bxd6 {[%clk 0:02:47.4]} 10... Qxd6 {[%clk 0:02:48.8]} 11. b3 {[%clk
0:02:47.1]} 11... Nd7 {[%clk 0:02:46.5]} 12. c4 {[%clk 0:02:47.5]} 12... dxc4
{[%clk 0:02:46.5]} 13. bxc4 {[%clk 0:02:38.1]} 13... c6 {[%clk 0:02:42.1]} 14.
Rb1 {[%clk 0:02:34.1]} 14... b5 {[%clk 0:02:34.5]} 15. Qc2 {[%clk 0:02:28.8]}
15... Rfc8 {[%clk 0:02:30.9]} 16. Nf4 {[%clk 0:02:25.9]} 16... a6 {[%clk
0:02:26.4]} 17. Rfc1 {[%clk 0:02:25]} 17... Qe7 {[%clk 0:02:16.2]} 18. a4 {[%clk
0:02:20]} 18... Nb6 {[%clk 0:02:06]} 19. axb5 {[%clk 0:02:16.8]} 19... cxb5
{[%clk 0:02:05.4]} 20. c5 {[%clk 0:01:59.4]} 20... Nd5 {[%clk 0:02:04.6]} 21.
Nd3 {[%clk 0:01:48.2]} 21... Qf6 {[%clk 0:01:43.9]} 22. Rb2 {[%clk 0:01:42.1]}
22... Rd8 {[%clk 0:01:43.5]} 23. Ra1 {[%clk 0:01:40.3]} 23... f4 {[%clk
0:01:43.2]} 24. e4 {[%clk 0:01:16.3]} 24... Qxd4 {[%clk 0:01:42.7]} 25. exd5
{[%clk 0:01:15.9]} 25... Rxd5 {[%clk 0:01:42.1]} 26. Ne1 {[%clk 0:00:37.4]}
26... Rxc5 {[%clk 0:01:41.2]} 27. Qb1 {[%clk 0:00:25.2]} 27... Bf5 {[%clk
0:01:40]} 28. Qa2 {[%clk 0:00:24.1]} 28... Rc6 {[%clk 0:01:17.2]} 29. h3 {[%clk
0:00:22.8]} 29... Re8 {[%clk 0:01:08.9]} 30. Nef3 {[%clk 0:00:20.2]} 30... Qd6
{[%clk 0:01:08.7]} 31. Qa3 {[%clk 0:00:17.5]} 31... Qc7 {[%clk 0:00:54.6]} 32.
Kh2 {[%clk 0:00:15.6]} 32... Re2 {[%clk 0:00:54.2]} 33. Nd4 {[%clk 0:00:14]}
33... f3+ {[%clk 0:00:52.2]} 34. Kg1 {[%clk 0:00:13.1]} 34... Rc1+ {[%clk
0:00:50.4]} 35. Nf1 {[%clk 0:00:10.6]} 35... fxg2 {[%clk 0:00:39.8]} 36. Kxg2
{[%clk 0:00:08.3]} 36... Be4+ {[%clk 0:00:29.7]} 37. Kg1 {[%clk 0:00:08.2]}
37... Ree1 {[%clk 0:00:28.3]} 38. Rxc1 {[%clk 0:00:07.2]} 38... Qxc1 {[%clk
0:00:28.3]} 39. Kh2 {[%clk 0:00:02.3]} 39... Rxf1 {[%clk 0:00:27.2]} 0-1

[Event "*** Titled Tuesday Blitz"]
[Site "Chess.com"]
[Date "2020.11.24"]
[Round "9"]
[White "NeverW84M8"]
[Black "Nadeev_Sergey"]
[Result "1-0"]
[WhiteElo "2586"]
[BlackElo "2468"]
[TimeControl "180+1"]
[EndTime "12:03:02 PST"]
[Termination "NeverW84M8 won by resignation"]

1. d4 {[%clk 0:03:00.9]} 1... Nf6 {[%clk 0:02:59.7]} 2. c4 {[%clk 0:03:01]} 2...
c6 {[%clk 0:03:00]} 3. Nf3 {[%clk 0:03:00.3]} 3... d5 {[%clk 0:02:59.9]} 4. Qc2
{[%clk 0:03:00.7]} 4... e6 {[%clk 0:02:57.1]} 5. Bf4 {[%clk 0:02:57.3]} 5... Bd6
{[%clk 0:02:55.9]} 6. Bxd6 {[%clk 0:02:55.3]} 6... Qxd6 {[%clk 0:02:56.8]} 7. e3
{[%clk 0:02:55.8]} 7... Nbd7 {[%clk 0:02:56.1]} 8. Nc3 {[%clk 0:02:54.1]} 8...
O-O {[%clk 0:02:54.8]} 9. cxd5 {[%clk 0:02:52.9]} 9... exd5 {[%clk 0:02:54.5]}
10. Bd3 {[%clk 0:02:53.8]} 10... Re8 {[%clk 0:02:50.8]} 11. O-O {[%clk
0:02:52.4]} 11... Nf8 {[%clk 0:02:50.6]} 12. Ne5 {[%clk 0:02:49.9]} 12... Ng6
{[%clk 0:02:44.8]} 13. f4 {[%clk 0:02:49.1]} 13... Nf8 {[%clk 0:02:39.1]} 14. h3
{[%clk 0:02:45]} 14... N6d7 {[%clk 0:02:26.2]} 15. Rf3 {[%clk 0:02:34.7]} 15...
f6 {[%clk 0:02:26]} 16. Nxd7 {[%clk 0:02:34.2]} 16... Bxd7 {[%clk 0:02:26.3]}
17. g4 {[%clk 0:02:34]} 17... Re7 {[%clk 0:02:25]} 18. Qf2 {[%clk 0:02:23.8]}
18... Rae8 {[%clk 0:02:24]} 19. Kh1 {[%clk 0:02:21.8]} 19... b6 {[%clk
0:02:21.1]} 20. Rg1 {[%clk 0:02:20.9]} 20... c5 {[%clk 0:02:20.2]} 21. Ne2
{[%clk 0:02:19.6]} 21... c4 {[%clk 0:02:13]} 22. Bb1 {[%clk 0:02:17.4]} 22... b5
{[%clk 0:02:13]} 23. f5 {[%clk 0:02:11.2]} 23... b4 {[%clk 0:02:09.3]} 24. Nf4
{[%clk 0:02:09.8]} 24... c3 {[%clk 0:01:52.2]} 25. bxc3 {[%clk 0:02:09.6]} 25...
bxc3 {[%clk 0:01:53.1]} 26. Bc2 {[%clk 0:02:10.3]} 26... h6 {[%clk 0:01:33.6]}
27. h4 {[%clk 0:02:08.5]} 27... Nh7 {[%clk 0:01:30.6]} 28. Bb3 {[%clk
0:02:03.6]} 28... Bc6 {[%clk 0:01:26]} 29. Ne6 {[%clk 0:01:47]} 29... Bd7 {[%clk
0:01:13.4]} 30. Nc5 {[%clk 0:01:41.4]} 30... Bc8 {[%clk 0:01:07.8]} 31. Qg3
{[%clk 0:01:18.6]} 31... Rd8 {[%clk 0:00:59.7]} 32. Qxd6 {[%clk 0:01:16.8]}
32... Rxd6 {[%clk 0:00:59.6]} 33. e4 {[%clk 0:01:17.3]} 33... Kh8 {[%clk
0:00:50.5]} 34. Bxd5 {[%clk 0:01:13.8]} 34... c2 {[%clk 0:00:34.4]} 35. Rc3
{[%clk 0:01:12.8]} 35... Ba6 {[%clk 0:00:26.8]} 36. Rxc2 {[%clk 0:01:05.3]}
36... Re8 {[%clk 0:00:20.7]} 37. Rgc1 {[%clk 0:01:02.1]} 37... g5 {[%clk
0:00:18.6]} 38. h5 {[%clk 0:00:59.7]} 38... Nf8 {[%clk 0:00:18.4]} 39. Nxa6
{[%clk 0:00:36.7]} 39... Rxa6 {[%clk 0:00:19.3]} 40. Rc8 {[%clk 0:00:36.6]}
40... Rxc8 {[%clk 0:00:18.9]} 41. Rxc8 {[%clk 0:00:37.5]} 41... Kg7 {[%clk
0:00:19.4]} 42. Rc7+ {[%clk 0:00:37.8]} 42... Kh8 {[%clk 0:00:18.6]} 43. Rf7
{[%clk 0:00:37.6]} 43... Nh7 {[%clk 0:00:18.8]} 44. e5 {[%clk 0:00:33.9]} 44...
fxe5 {[%clk 0:00:11.3]} 45. dxe5 {[%clk 0:00:34.8]} 45... Ra5 {[%clk 0:00:11.7]}
46. Rd7 {[%clk 0:00:34.7]} 46... Nf8 {[%clk 0:00:11.5]} 47. Rd8 {[%clk
0:00:34.6]} 1-0

[Event "*** Titled Tuesday Blitz"]
[Site "Chess.com"]
[Date "2020.11.24"]
[Round "9"]
[White "WildTricks"]
[Black "ViktoriyaTarasova"]
[Result "1-0"]
[WhiteElo "2461"]
[BlackElo "2297"]
[TimeControl "180+1"]
[EndTime "12:03:03 PST"]
[Termination "WildTricks won by resignation"]

1. f4 {[%clk 0:03:00.9]} 1... d5 {[%clk 0:02:58.7]} 2. Nf3 {[%clk 0:03:00.5]}
2... Nf6 {[%clk 0:02:57.5]} 3. g3 {[%clk 0:03:00.1]} 3... g6 {[%clk 0:02:57.5]}
4. Bg2 {[%clk 0:03:00]} 4... b6 {[%clk 0:02:58.1]} 5. O-O {[%clk 0:02:59.5]}
5... Bb7 {[%clk 0:02:58.3]} 6. d3 {[%clk 0:02:59.5]} 6... Bg7 {[%clk 0:02:58.2]}
7. Ne5 {[%clk 0:02:56.8]} 7... O-O {[%clk 0:02:54.1]} 8. Nc3 {[%clk 0:02:56.3]}
8... Nbd7 {[%clk 0:02:47.4]} 9. Nxd7 {[%clk 0:02:54.3]} 9... Qxd7 {[%clk
0:02:46.1]} 10. e4 {[%clk 0:02:52.3]} 10... e6 {[%clk 0:02:43.4]} 11. Qe2 {[%clk
0:02:42.9]} 11... c5 {[%clk 0:02:41]} 12. a4 {[%clk 0:02:37.3]} 12... d4 {[%clk
0:02:40.2]} 13. Nd1 {[%clk 0:02:32.1]} 13... a6 {[%clk 0:02:30.4]} 14. Nf2
{[%clk 0:02:28]} 14... Rac8 {[%clk 0:02:30.3]} 15. g4 {[%clk 0:02:15]} 15... Ne8
{[%clk 0:02:29.6]} 16. f5 {[%clk 0:01:59.6]} 16... exf5 {[%clk 0:02:22.2]} 17.
gxf5 {[%clk 0:02:00.5]} 17... Nf6 {[%clk 0:01:37.8]} 18. Bg5 {[%clk 0:01:47.1]}
18... Rfe8 {[%clk 0:01:21.8]} 19. Bh3 {[%clk 0:01:38.2]} 19... gxf5 {[%clk
0:01:14.7]} 20. Bxf6 {[%clk 0:01:36.4]} 20... Bxf6 {[%clk 0:01:14.5]} 21. Qh5
{[%clk 0:01:36.4]} 21... Kh8 {[%clk 0:00:55.6]} 22. Bxf5 {[%clk 0:01:34.6]}
22... Rg8+ {[%clk 0:00:55.7]} 23. Ng4 {[%clk 0:01:22.2]} 23... Rxg4+ {[%clk
0:00:49]} 24. Qxg4 {[%clk 0:01:17.2]} 24... Qc7 {[%clk 0:00:37.9]} 25. Bxc8
{[%clk 0:00:52.9]} 25... Bxc8 {[%clk 0:00:37.9]} 26. Qf4 {[%clk 0:00:52.9]}
26... Qxf4 {[%clk 0:00:36]} 27. Rxf4 {[%clk 0:00:52.2]} 27... Bg5 {[%clk
0:00:36.7]} 28. Rxf7 {[%clk 0:00:51]} 28... Be3+ {[%clk 0:00:37.3]} 29. Kg2
{[%clk 0:00:51]} 29... Be6 {[%clk 0:00:37.6]} 30. Rf6 {[%clk 0:00:49.6]} 30...
Bd7 {[%clk 0:00:36.3]} 31. Rxb6 {[%clk 0:00:48.9]} 31... a5 {[%clk 0:00:34.5]}
32. Rd6 {[%clk 0:00:48.2]} 32... Bg4 {[%clk 0:00:33.1]} 33. h3 {[%clk
0:00:47.2]} 33... Be2 {[%clk 0:00:32.2]} 34. Re1 {[%clk 0:00:46.4]} 34... Bh5
{[%clk 0:00:31.7]} 35. Rd7 {[%clk 0:00:42]} 35... Kg8 {[%clk 0:00:29.6]} 36. Ra7
{[%clk 0:00:40.9]} 36... h6 {[%clk 0:00:23.9]} 37. Rxa5 {[%clk 0:00:40.2]} 37...
Bd2 {[%clk 0:00:22.8]} 38. Ra8+ {[%clk 0:00:39]} 38... Kf7 {[%clk 0:00:23.4]}
39. Rf1+ {[%clk 0:00:38.8]} 39... Ke6 {[%clk 0:00:23.5]} 40. Rf5 {[%clk
0:00:36]} 40... Bd1 {[%clk 0:00:22.3]} 41. Rxc5 {[%clk 0:00:35.3]} 41... Be2
{[%clk 0:00:21.5]} 42. Rd8 {[%clk 0:00:33.9]} 42... Be3 {[%clk 0:00:20.2]} 43.
a5 {[%clk 0:00:33.3]} 43... Ke7 {[%clk 0:00:19.1]} 44. Rcd5 {[%clk 0:00:33.3]}
44... Bd1 {[%clk 0:00:18.5]} 45. a6 {[%clk 0:00:33.2]} 45... Bxc2 {[%clk
0:00:18.7]} 46. a7 {[%clk 0:00:32.8]} 46... Bxd3 {[%clk 0:00:19.1]} 47. Kf3
{[%clk 0:00:32.5]} 47... Bc2 {[%clk 0:00:18.1]} 48. a8=Q {[%clk 0:00:32.3]}
48... Bd1+ {[%clk 0:00:19]} 49. Kg2 {[%clk 0:00:31.9]} 1-0